[Event "22nd OIBM 2018"]
[Site "Gmund am Tegernsee"]
[Date "2018.11.02"]
[Round "7"]
[White "Sieglen, Joachim, Dr."]
[Black "Poelt, Christoph"]
[Result "1-0"]
[ECO "D85"]
[WhiteElo "2210"]
[BlackElo "1987"]
[Annotator "NA"]
[PlyCount "79"]
[EventDate "2018.10.27"]
[EventType "swiss"]
[EventCountry "GER"]
[SourceTitle "playchess.com"]
[Source "ChessBase"]
[SourceQuality "1"]
[TimeControl "40/5400+30:1800+30"]

1. d4 {[%emt 0:00:00]} Nf6 {[%emt 0:00:00]} 2. c4 {[%emt 0:00:00]} g6 {[%emt 0:00:00]} 3. Nc3 {[%emt 0:00:00]} d5 {[%emt 0:00:00]} 4. Nf3 {[%emt 0:00:01]} Bg7 {[%emt 0:00:09]} 5. cxd5 {[%emt 0:00:27]} Nxd5 {[%emt 0:00:03]} 6. e4 {[%emt 0:00:09]} Nxc3 {[%emt 0:00:06]} 7. bxc3 {[%emt 0:00:02]} c5 {[%emt 0:00:11]} 8. Be3 {[%emt 0:00:16]} Qa5 {[%emt 0:00:59]} 9. Qd2 {[%emt 0:00:28]} Nc6 {[%emt 0:02:21]} 10. Rc1 {[%emt 0:00:28]} cxd4 {[%emt 0:01:52]} 11. cxd4 {[%emt 0:00:06]} Qxd2+ {[%emt 0:00:31]} 12. Kxd2 {[%emt 0:00:02]} O-O {[%emt 0:03:06]} 13. d5 {[%emt 0:01:52]} Rd8 {[%emt 0:05:20]} 14. Ke1 {[%emt 0:14:40]} Ne5 {[%emt 0:08:04] LiveBook: 6 Games} 15. Nxe5 {[%emt 0:00:49]} Bxe5 {[%emt 0:00:02]} 16. f4 {[%emt 0:00:24]} Bb2 {[%emt 0:01:01]} 17. Rc2 {[%emt 0:03:23]} Ba3 $14 {[%emt 0:01:48]} 18. Kf2 {[%emt 0:06:55]} e6 {[%emt 0:07:24]} 19. Bc4 {[%emt 0:05:27]} a6 {[%emt 0:06:37]} 20. Bb6 {[%emt 0:13:07]} Re8 {[%emt 0:04:24]} 21. Kf3 {[%emt 0:21:16]} Bd7 {[%emt 0:12:27]} 22. d6 {[%emt 0:07:20]} e5 {[%emt 0:09:50]} 23. Bc7 {[%emt 0:01:23]} exf4 {[%emt 0:05:48]} 24. Bd5 {[%emt 0:03:47]} Rac8 {[%emt 0:17:00]} 25. Rd2 {[%emt 0:01:00]} b5 {[%emt 0:07:00]} 26. Bb7 {[%emt 0:01:11]} g5 {[%emt 0:00:57]} 27. Rd5 {[%emt 0:02:48]} f6 {[%emt 0:04:01]} 28. Bxa6 {[%emt 0:00:30]} h5 {[%emt 0:01:51]} 29. h3 {[%emt 0:03:48]} Rcd8 {[%emt 0:00:56]} 30. Rhd1 {[%emt 0:03:54]} Bc6 {[%emt 0:00:35]} 31. Bxb5 {[%emt 0:02:01]} Bxd5 {[%emt 0:00:25]} 32. Bxe8 {[%emt 0:01:27]} Bxe4+ {[%emt 0:00:08]} 33. Kxe4 {[%emt 0:00:09]} Rxe8+ {[%emt 0:00:04]} 34. Kd3 {[%emt 0:01:34]} Re3+ {[%emt 0:00:57]} 35. Kc2 {[%emt 0:00:13]} Bxd6 {[%emt 0:00:37]} 36. Bxd6 {[%emt 0:00:52]} Re2+ {[%emt 0:00:39]} 37. Rd2 {[%emt 0:00:11]} Rxd2+ {[%emt 0:00:06]} 38. Kxd2 {[%emt 0:00:09]} Kf7 {[%emt 0:00:00]} 39. Ke2 {[%emt 0:00:45]} Ke6 {[%emt 0:01:17]} 40. Bxf4 {[%emt 0:00:11]} 1-0

[Event "22nd OIBM 2018"]
[Site "Gmund am Tegernsee"]
[Date "2018.11.02"]
[Round "7"]
[White "Leeb, Simon"]
[Black "Wehrmann, Henning"]
[Result "1-0"]
[ECO "E73"]
[WhiteElo "2203"]
[BlackElo "1828"]
[Annotator "NA"]
[PlyCount "33"]
[EventDate "2018.10.27"]
[EventType "swiss"]
[EventCountry "GER"]
[SourceTitle "playchess.com"]
[Source "ChessBase"]
[SourceQuality "1"]
[TimeControl "40/5400+30:1800+30"]

1. d4 {[%emt 0:00:00]} Nf6 {[%emt 0:00:00]} 2. c4 {[%emt 0:00:00]} g6 {[%emt 0:00:07]} 3. Nc3 {[%emt 0:00:27]} Bg7 {[%emt 0:00:08]} 4. e4 {[%emt 0:00:07]} d6 {[%emt 0:00:05]} 5. Be2 {[%emt 0:00:05]} e5 {[%emt 0:09:09]} 6. dxe5 {[%emt 0:06:51]} dxe5 {[%emt 0:00:07]} 7. Qxd8+ {[%emt 0:00:06]} Kxd8 {[%emt 0:00:04]} 8. Bg5 {[%emt 0:00:05]} c6 {[%emt 0:00:09]} 9. f4 {[%emt 0:02:51]} Nbd7 {[%emt 0:01:20]} 10. fxe5 {[%emt 0:05:54]} Nxe5 {[%emt 0:00:51]} 11. Nf3 {[%emt 0:00:06]} Re8 {[%emt 0:04:50]} 12. O-O-O+ {[%emt 0:01:55]} Bd7 {[%emt 0:00:47]} 13. Rd6 {[%emt 0:04:44]} Nxf3 {[%emt 0:04:20]} 14. gxf3 {[%emt 0:03:13]} h6 {[%emt 0:04:19]} 15. Bxf6+ {[%emt 0:02:31]} Bxf6 {[%emt 0:00:14]} 16. Rxf6 {[%emt 0:00:05]} Be6 {[%emt 0:00:06]} 17. e5 {[%emt 0:00:41]} 1-0

[Event "22nd OIBM 2018"]
[Site "Gmund am Tegernsee"]
[Date "2018.11.02"]
[Round "7"]
[White "Schrems, Hermann"]
[Black "Morawietz, Dieter"]
[Result "0-1"]
[ECO "A64"]
[WhiteElo "2154"]
[BlackElo "2408"]
[Annotator "NA"]
[PlyCount "111"]
[EventDate "2018.10.27"]
[EventType "swiss"]
[EventCountry "GER"]
[SourceTitle "playchess.com"]
[Source "ChessBase"]
[SourceQuality "1"]
[TimeControl "40/5400+30:1800+30"]

1. d4 {[%emt 0:00:00]} Nf6 {[%emt 0:00:00]} 2. c4 {[%emt 0:00:00]} e6 {[%emt 0:00:00]} 3. g3 {[%emt 0:00:00]} c5 {[%emt 0:00:00]} 4. d5 {[%emt 0:01:04]} exd5 {[%emt 0:00:11]} 5. cxd5 {[%emt 0:00:02]} d6 {[%emt 0:00:19]} 6. Nf3 {[%emt 0:00:07]} g6 {[%emt 0:00:11]} 7. Bg2 {[%emt 0:00:07]} Bg7 {[%emt 0:00:14]} 8. Nc3 {[%emt 0:00:17]} O-O {[%emt 0:00:14]} 9. O-O {[%emt 0:00:07]} Re8 {[%emt 0:00:22]} 10. Nd2 {[%emt 0:00:22]} a6 {[%emt 0:00:29]} 11. a4 {[%emt 0:00:07]} Nbd7 {[%emt 0:00:09]} 12. h3 {[%emt 0:01:12]} Rb8 {[%emt 0:00:47]} 13. Nc4 {[%emt 0:00:42]} Ne5 {[%emt 0:00:17]} 14. Na3 {[%emt 0:00:34]} Nh5 {[%emt 0:02:00]} 15. e4 {[%emt 0:00:06]} Bd7 {[%emt 0:00:50]} 16. Ne2 {[%emt 0:04:41] A64: Modern Benoni: Fianchetto Variation: 9...Nbd7 10 Nd2 a6 11 a4 Re8} (16. g4 Nf6 17. g5 Nh5 18. f4 b5 19. fxe5 b4 20. Nc4 bxc3 21. bxc3 Bxe5 22. Qf3 f5 23. gxf6 Qxf6 24. Nxe5 Qxe5 {0-1 (60) So,W (2812)-Nakamura,H (2785) Stavanger 2017}) 16... f5 {[%emt 0:17:44]} 17. f4 {[%emt 0:03:59]} Nf7 {[%emt 0:00:23] [#]} 18. exf5 $146 {[%emt 0:00:24] [#]} (18. Nc2 $17) ({Predecessor:} 18. Nc4 b5 19. axb5 Bxb5 20. Qc2 fxe4 21. g4 Nf6 22. Rd1 Nd7 23. Ra2 Bxc4 24. Qxc4 {½-½ (50) Fontaine,R (2537)-Iordachescu,V (2623) Paleochora 2010}) 18... Rxe2 $1 {[%emt 0:09:20]} 19. Qxe2 {[%emt 0:00:54]} Nxg3 {[%emt 0:03:00]} 20. Qf3 {[%emt 0:00:08]} Bd4+ {[%emt 0:07:07]} 21. Be3 {[%emt 0:01:38]} Bxe3+ {[%emt 0:01:14]} 22. Qxe3 {[%emt 0:00:03]} Nxf1 {[%emt 0:00:16]} 23. Bxf1 {[%emt 0:00:04]} Bxf5 {[%emt 0:00:22]} 24. Re1 {[%emt 0:00:23]} Qh4 {[%emt 0:02:26]} 25. Nc4 {[%emt 0:01:11]} Bd7 {[%emt 0:17:45]} 26. a5 {[%emt 0:02:43]} Re8 {[%emt 0:06:29]} 27. Qf2 {[%emt 0:00:07]} Qxf2+ {[%emt 0:05:45]} 28. Kxf2 {[%emt 0:00:06]} Rxe1 {[%emt 0:00:12]} 29. Kxe1 {[%emt 0:00:02]} Kf8 {[%emt 0:01:21]} 30. Kf2 {[%emt 0:00:47]} Ke7 {[%emt 0:00:10]} 31. Kg3 {[%emt 0:00:07]} Nh6 {[%emt 0:02:22]} 32. Bd3 {[%emt 0:00:12]} Ng8 {[%emt 0:06:29]} 33. Be4 {[%emt 0:00:57]} Nf6 {[%emt 0:00:24]} 34. Bf3 {[%emt 0:00:07]} Bb5 {[%emt 0:03:31]} 35. Nb6 {[%emt 0:01:45]} Bd3 {[%emt 0:04:35]} 36. Bg4 {[%emt 0:00:22]} Kd8 {[%emt 0:02:33]} 37. Be6 {[%emt 0:02:39]} Ne4+ {[%emt 0:07:20]} 38. Kh4 {[%emt 0:00:10]} h6 {[%emt 0:00:14]} 39. f5 {[%emt 0:01:29]} Nf6 {[%emt 0:01:29]} 40. fxg6 {[%emt 0:00:14]} Bxg6 {[%emt 0:00:09]} 41. Kg3 {[%emt 0:31:01]} Ne4+ {[%emt 0:30:47]} 42. Kg2 {[%emt 0:01:26]} Nd2 {[%emt 0:00:00]} 43. Kf2 $19 {[%emt 0:00:00]} (43. Kg3 $17 {was called for.}) 43... Nb3 {[%emt 0:00:00]} 44. Nc4 {[%emt 0:00:00]} Ke7 {[%emt 0:00:00]} 45. Ke3 {[%emt 0:00:00]} Be8 {[%emt 0:00:00]} 46. Nb6 {[%emt 0:00:00]} Kd8 {[%emt 0:00:00]} 47. Nc4 {[%emt 0:00:00]} Kc7 {[%emt 0:00:00]} 48. Kf4 {[%emt 0:00:00]} Bb5 {[%emt 0:00:00]} 49. Ne3 {[%emt 0:00:00]} Nxa5 {[%emt 0:00:00]} 50. Ng4 {[%emt 0:00:00]} Nc4 {[%emt 0:00:00]} 51. Nxh6 {[%emt 0:00:00]} Nxb2 {[%emt 0:00:00]} 52. Ng4 {[%emt 0:00:00]} a5 {[%emt 0:00:00]} 53. h4 {[%emt 0:00:00]} a4 {[%emt 0:00:00]} 54. h5 {[%emt 0:00:00]} a3 {[%emt 0:00:00]} 55. h6 {[%emt 0:00:00]} a2 56. h7 0-1

[Event "22nd OIBM 2018"]
[Site "Gmund am Tegernsee"]
[Date "2018.11.02"]
[Round "7"]
[White "Juergens, Klaus"]
[Black "Colpe, Malte"]
[Result "0-1"]
[ECO "A05"]
[WhiteElo "2149"]
[BlackElo "2379"]
[Annotator "NA"]
[PlyCount "42"]
[EventDate "2018.10.27"]
[EventType "swiss"]
[EventCountry "GER"]
[SourceTitle "playchess.com"]
[Source "ChessBase"]
[SourceQuality "1"]
[TimeControl "40/5400+30:1800+30"]

1. Nf3 {[%emt 0:00:00]} Nf6 {[%emt 0:00:00]} 2. c4 {[%emt 0:00:00]} g6 {[%emt 0:00:10]} 3. Nc3 {[%emt 0:00:02]} Bg7 {[%emt 0:00:21]} 4. e4 {[%emt 0:00:15]} d6 {[%emt 0:00:17]} 5. d4 {[%emt 0:00:11]} O-O {[%emt 0:00:08]} 6. h3 {[%emt 0:00:15]} Nbd7 {[%emt 0:02:24]} 7. e5 {[%emt 0:04:38]} Ne8 {[%emt 0:04:36]} 8. Be2 {[%emt 0:10:58]} c5 {[%emt 0:04:29]} 9. exd6 {[%emt 0:10:11]} Nxd6 {[%emt 0:00:36]} 10. O-O $11 {[%emt 0:00:46]} cxd4 {[%emt 0:13:35]} 11. Nxd4 {[%emt 0:00:21]} Ne5 {[%emt 0:00:52]} 12. c5 {[%emt 0:05:34]} Nf5 {[%emt 0:00:52]} 13. Nxf5 {[%emt 0:01:35]} Bxf5 {[%emt 0:00:11]} 14. Bg5 {[%emt 0:03:44]} h6 {[%emt 0:15:00]} 15. Qxd8 {[%emt 0:11:12]} Rfxd8 {[%emt 0:00:07]} 16. Bxe7 {[%emt 0:05:10]} Rd2 {[%emt 0:00:15]} 17. g4 {[%emt 0:01:56]} Be6 {[%emt 0:07:07]} 18. Rab1 {[%emt 0:17:57]} Nc6 {[%emt 0:02:13]} 19. Bd6 {[%emt 0:00:16]} Bxc3 {[%emt 0:00:20]} 20. bxc3 {[%emt 0:00:12]} Rxe2 {[%emt 0:00:13]} 21. Rxb7 {[%emt 0:00:27]} Rxa2 {[%emt 0:03:29]} 0-1

[Event "22nd OIBM 2018"]
[Site "Gmund am Tegernsee"]
[Date "2018.11.02"]
[Round "7"]
[White "Koelle, Tobias"]
[Black "Fischer, Daniel"]
[Result "1/2-1/2"]
[ECO "E21"]
[WhiteElo "2125"]
[BlackElo "2336"]
[Annotator "NA"]
[PlyCount "78"]
[EventDate "2018.10.27"]
[EventType "swiss"]
[EventCountry "GER"]
[SourceTitle "playchess.com"]
[Source "ChessBase"]
[SourceQuality "1"]
[TimeControl "40/5400+30:1800+30"]

1. d4 {[%emt 0:00:00]} Nf6 {[%emt 0:00:00]} 2. c4 {[%emt 0:00:00]} e6 {[%emt 0:00:00]} 3. Nc3 {[%emt 0:00:00]} Bb4 {[%emt 0:00:00]} 4. Nf3 {[%emt 0:00:00]} c5 {[%emt 0:00:39]} 5. g3 {[%emt 0:00:04]} Nc6 {[%emt 0:00:50]} 6. Bg2 {[%emt 0:00:32]} Ne4 {[%emt 0:00:53]} 7. Qd3 {[%emt 0:04:18]} cxd4 {[%emt 0:01:09]} 8. Nxd4 {[%emt 0:00:34]} Nxc3 {[%emt 0:00:38]} 9. bxc3 {[%emt 0:00:10]} Ne5 {[%emt 0:00:33] E20: Nimzo-Indian: 4 g3 and 4 f3} 10. Qc2 {[%emt 0:02:25]} Be7 {[%emt 0:00:57]} 11. Qb3 {[%emt 0:04:01]} O-O {[%emt 0:03:18]} 12. O-O {[%emt 0:01:23]} Qc7 {[%emt 0:05:27]} 13. Bf4 {[%emt 0:08:19]} a6 {[%emt 0:21:51]} 14. Nf3 {[%emt 0:06:53] [#]} d6 $146 {[%emt 0:06:49]} ({Predecessor:} 14... Nxf3+ 15. Bxf3 e5 16. Be3 Bc5 17. Bxc5 Qxc5 {1-0 (32) Gulko,B (2490)-Balashov,Y (2540) Tallinn (Estland) 1983}) 15. Nxe5 {[%emt 0:00:55]} dxe5 {[%emt 0:00:04]} 16. Be3 {[%emt 0:00:39]} Bc5 {[%emt 0:01:21]} 17. Bxc5 {[%emt 0:00:12]} Qxc5 {[%emt 0:00:05]} 18. Qb4 {[%emt 0:00:20]} Qc7 {[%emt 0:05:24]} 19. c5 {[%emt 0:11:23]} Bd7 {[%emt 0:21:06]} 20. Qxb7 {[%emt 0:01:14]} Ra7 {[%emt 0:00:35]} 21. Qxc7 {[%emt 0:01:55]} Rxc7 {[%emt 0:00:10]} 22. Rfd1 {[%emt 0:01:09]} Bb5 {[%emt 0:05:28]} 23. a4 {[%emt 0:06:04]} Bxe2 {[%emt 0:04:11]} 24. Re1 {[%emt 0:00:06]} Bc4 {[%emt 0:00:54]} 25. Rxe5 {[%emt 0:00:09]} f6 {[%emt 0:00:45]} 26. Re3 $11 {[%emt 0:00:50]} Rxc5 {[%emt 0:00:22]} 27. Rb1 {[%emt 0:06:08]} a5 {[%emt 0:03:22]} 28. h4 {[%emt 0:04:46]} Rfc8 {[%emt 0:02:19]} 29. Rb6 {[%emt 0:04:04]} e5 {[%emt 0:01:40]} 30. Re1 {[%emt 0:09:49]} Kf7 {[%emt 0:03:35]} 31. Rd1 {[%emt 0:01:01]} Ke7 {[%emt 0:05:14]} 32. Be4 {[%emt 0:05:46]} h6 {[%emt 0:01:48]} 33. Bf5 {[%emt 0:00:45]} R8c7 {[%emt 0:00:45]} 34. Rbd6 {[%emt 0:01:38]} Bb3 {[%emt 0:03:19]} 35. Rd7+ {[%emt 0:01:56]} Rxd7 {[%emt 0:00:27]} 36. Rxd7+ {[%emt 0:00:04]} Kf8 {[%emt 0:00:11]} 37. Rd8+ {[%emt 0:00:22]} Ke7 {[%emt 0:00:11]} 38. Rd7+ {[%emt 0:00:05]} Kf8 {[%emt 0:01:16]} 39. Rd8+ {[%emt 0:00:06]} Ke7 {[%emt 0:00:05]} 1/2-1/2

[Event "22nd OIBM 2018"]
[Site "Gmund am Tegernsee"]
[Date "2018.11.02"]
[Round "7"]
[White "Thrish Karthik"]
[Black "Schnepp, Gunnar"]
[Result "0-1"]
[ECO "B84"]
[WhiteElo "2116"]
[BlackElo "2320"]
[Annotator "NA"]
[PlyCount "62"]
[EventDate "2018.10.27"]
[EventType "swiss"]
[EventCountry "GER"]
[SourceTitle "playchess.com"]
[Source "ChessBase"]
[SourceQuality "1"]
[TimeControl "40/5400+30:1800+30"]

1. e4 {[%emt 0:00:00]} c5 {[%emt 0:00:00]} 2. Nf3 {[%emt 0:00:05]} d6 {[%emt 0:00:00]} 3. d4 {[%emt 0:00:03]} cxd4 {[%emt 0:00:00]} 4. Nxd4 {[%emt 0:00:16]} Nf6 {[%emt 0:00:00]} 5. Nc3 {[%emt 0:00:04]} a6 {[%emt 0:00:16]} 6. Be2 {[%emt 0:00:13]} e6 {[%emt 0:01:00]} 7. O-O {[%emt 0:03:36]} Be7 {[%emt 0:00:18]} 8. a4 {[%emt 0:01:12]} Qc7 {[%emt 0:02:43]} 9. Be3 {[%emt 0:05:52]} b6 {[%emt 0:03:48]} 10. f4 {[%emt 0:06:46]} Bb7 {[%emt 0:00:32]} 11. Bf3 {[%emt 0:00:06]} Nbd7 {[%emt 0:01:27]} 12. Nb3 {[%emt 0:04:09]} Rc8 {[%emt 0:06:31]} 13. g4 {[%emt 0:15:48]} h6 {[%emt 0:25:31]} 14. Qe2 {[%emt 0:08:47]} O-O {[%emt 0:07:34]} 15. h4 {[%emt 0:07:18]} d5 {[%emt 0:03:47]} 16. e5 {[%emt 0:09:39]} Ne4 {[%emt 0:00:22]} 17. Bxe4 {[%emt 0:00:07]} dxe4 {[%emt 0:00:15]} 18. g5 {[%emt 0:00:34]} hxg5 {[%emt 0:11:44]} 19. hxg5 {[%emt 0:00:05]} Rfd8 {[%emt 0:00:38]} 20. Qf2 {[%emt 0:05:39]} Bb4 {[%emt 0:03:20]} 21. Bd4 {[%emt 0:12:28]} Nc5 {[%emt 0:06:57]} 22. Bxc5 {[%emt 0:01:05]} bxc5 {[%emt 0:00:29]} 23. Na2 {[%emt 0:09:58]} c4 {[%emt 0:03:01]} 24. Nxb4 {[%emt 0:00:26]} cxb3 {[%emt 0:00:12]} 25. cxb3 {[%emt 0:00:21]} a5 {[%emt 0:00:12]} 26. Na2 {[%emt 0:00:41]} Qc6 {[%emt 0:00:39]} 27. Rac1 {[%emt 0:06:33]} e3 {[%emt 0:00:20]} 28. Qh2 {[%emt 0:00:02]} Qb6 {[%emt 0:00:59]} 29. Qe2 {[%emt 0:01:08]} Rxc1 {[%emt 0:01:22]} 30. Rxc1 {[%emt 0:01:08]} Rd2 {[%emt 0:01:09]} 31. Qb5 {[%emt 0:00:34]} Rg2+ {[%emt 0:01:07]} 0-1

[Event "22nd OIBM 2018"]
[Site "Gmund am Tegernsee"]
[Date "2018.11.02"]
[Round "7"]
[White "Astengo, Corrado"]
[Black "Welling, Gerard"]
[Result "0-1"]
[ECO "B06"]
[WhiteElo "2114"]
[BlackElo "2297"]
[Annotator "NA"]
[PlyCount "44"]
[EventDate "2018.10.27"]
[EventType "swiss"]
[EventCountry "GER"]
[SourceTitle "playchess.com"]
[Source "ChessBase"]
[SourceQuality "1"]
[TimeControl "40/5400+30:1800+30"]

1. e4 {[%emt 0:00:00]} g6 {[%emt 0:00:00]} 2. d4 {[%emt 0:00:00]} Bg7 {[%emt 0:00:00]} 3. Nc3 {[%emt 0:00:00]} c5 {[%emt 0:00:24]} 4. d5 {[%emt 0:02:23]} d6 {[%emt 0:00:08]} 5. Be3 {[%emt 0:03:19]} Nf6 {[%emt 0:00:37]} 6. Bb5+ {[%emt 0:02:41]} Bd7 {[%emt 0:06:20]} 7. Bxd7+ {[%emt 0:02:02]} Nbxd7 {[%emt 0:00:26]} 8. a4 {[%emt 0:03:01]} O-O {[%emt 0:02:49]} 9. h3 {[%emt 0:00:49]} a6 {[%emt 0:01:29]} 10. Nf3 {[%emt 0:09:10]} b5 {[%emt 0:00:42]} 11. Nd2 {[%emt 0:00:43]} b4 {[%emt 0:02:20]} 12. Ne2 {[%emt 0:00:36]} a5 {[%emt 0:01:58]} 13. O-O {[%emt 0:01:24]} Nb6 {[%emt 0:01:34]} 14. Kh1 {[%emt 0:03:24]} Nfd7 {[%emt 0:01:00]} 15. c3 {[%emt 0:06:04]} Ne5 $11 {[%emt 0:05:42]} 16. b3 {[%emt 0:05:15]} bxc3 {[%emt 0:03:53]} 17. Nxc3 {[%emt 0:01:23]} Nd3 {[%emt 0:01:00]} 18. Qc2 {[%emt 0:01:06]} Nb4 {[%emt 0:03:40]} 19. Qb2 {[%emt 0:00:53]} f5 {[%emt 0:02:30]} 20. f3 {[%emt 0:00:49]} e6 {[%emt 0:01:52]} 21. dxe6 {[%emt 0:03:48]} Qf6 {[%emt 0:00:21]} 22. Ndb1 {[%emt 0:01:19]} fxe4 {[%emt 0:01:49]} 0-1

[Event "22nd OIBM 2018"]
[Site "Gmund am Tegernsee"]
[Date "2018.11.02"]
[Round "7"]
[White "Rueberg, Jobst"]
[Black "Markmann, Ulrich"]
[Result "0-1"]
[ECO "B40"]
[WhiteElo "2101"]
[BlackElo "2282"]
[Annotator "NA"]
[PlyCount "80"]
[EventDate "2018.10.27"]
[EventType "swiss"]
[EventCountry "GER"]
[SourceTitle "playchess.com"]
[Source "ChessBase"]
[SourceQuality "1"]
[TimeControl "40/5400+30:1800+30"]

1. e4 {[%emt 0:00:00]} c5 {[%emt 0:00:00]} 2. Nf3 {[%emt 0:00:00]} e6 {[%emt 0:00:06]} 3. c3 {[%emt 0:00:33]} d5 {[%emt 0:00:07]} 4. e5 {[%emt 0:00:31]} d4 {[%emt 0:01:22]} 5. Bd3 {[%emt 0:01:31]} Nc6 {[%emt 0:06:46]} 6. O-O {[%emt 0:01:36]} Nge7 {[%emt 0:02:36]} 7. Re1 {[%emt 0:03:55]} Ng6 {[%emt 0:04:04]} 8. g3 {[%emt 0:05:22]} Be7 {[%emt 0:13:54]} 9. h4 {[%emt 0:06:58]} Qc7 {[%emt 0:13:51]} 10. Qe2 {[%emt 0:05:59]} b6 {[%emt 0:00:18]} 11. b3 {[%emt 0:05:53]} Bb7 {[%emt 0:00:47]} 12. Bb2 {[%emt 0:02:49]} dxc3 {[%emt 0:01:34]} 13. dxc3 {[%emt 0:11:13]} O-O-O {[%emt 0:00:41]} 14. Ba6 {[%emt 0:08:12]} h5 {[%emt 0:11:10]} 15. Bxb7+ {[%emt 0:03:24]} Qxb7 {[%emt 0:00:07]} 16. Na3 {[%emt 0:02:16]} Rd5 {[%emt 0:07:04]} 17. Rad1 {[%emt 0:05:02] [#]} Rxe5 $17 {[%emt 0:02:24]} 18. Nxe5 {[%emt 0:11:39]} Ncxe5 {[%emt 0:00:03]} 19. f4 {[%emt 0:01:28]} Nf3+ {[%emt 0:00:32]} 20. Kf2 {[%emt 0:00:11]} Nxe1 {[%emt 0:00:18]} 21. Rxe1 {[%emt 0:00:57]} Nxf4 {[%emt 0:00:58]} 22. gxf4 {[%emt 0:00:35]} Bxh4+ {[%emt 0:00:04]} 23. Ke3 {[%emt 0:00:36]} Bxe1 {[%emt 0:00:14]} 24. Qxe1 {[%emt 0:00:08]} h4 {[%emt 0:01:39]} 25. Nb5 {[%emt 0:01:24]} Qg2 {[%emt 0:04:17]} 26. Nd6+ {[%emt 0:08:12]} Kb8 {[%emt 0:00:07]} 27. Nxf7 {[%emt 0:01:42]} h3 {[%emt 0:05:55]} 28. Nxh8 {[%emt 0:00:27]} h2 {[%emt 0:00:04]} 29. Qh4 {[%emt 0:01:59]} g5 {[%emt 0:03:52]} 30. Qh5 {[%emt 0:03:50]} gxf4+ {[%emt 0:00:21]} 31. Kxf4 {[%emt 0:00:39]} Qf2+ {[%emt 0:00:11]} 32. Ke5 {[%emt 0:00:26]} Qf5+ {[%emt 0:00:07]} 33. Qxf5 {[%emt 0:00:23]} exf5 {[%emt 0:00:02]} 34. c4 {[%emt 0:02:25]} h1=Q {[%emt 0:00:09]} 35. Ke6 {[%emt 0:01:05]} f4 {[%emt 0:03:52]} 36. Nf7 {[%emt 0:01:01]} Qc6+ {[%emt 0:01:39]} 37. Ke7 {[%emt 0:02:07]} f3 {[%emt 0:00:58]} 38. Be5+ {[%emt 0:00:20]} Ka8 {[%emt 0:00:04]} 39. Bg3 {[%emt 0:00:41]} Qe4+ {[%emt 0:01:11]} 40. Kf6 {[%emt 0:00:47]} f2 {[%emt 0:00:31]} 0-1

[Event "22nd OIBM 2018"]
[Site "Gmund am Tegernsee"]
[Date "2018.11.02"]
[Round "7"]
[White "Lindam, Ingo"]
[Black "Tscharotschkin, Michael"]
[Result "1-0"]
[ECO "D02"]
[WhiteElo "2098"]
[BlackElo "2236"]
[Annotator "NA"]
[PlyCount "91"]
[EventDate "2018.10.27"]
[EventType "swiss"]
[EventCountry "GER"]
[SourceTitle "playchess.com"]
[Source "ChessBase"]
[SourceQuality "1"]
[TimeControl "40/5400+30:1800+30"]

1. d4 {[%emt 0:00:00]} d5 {[%emt 0:00:00]} 2. Nf3 {[%emt 0:00:00]} c6 {[%emt 0:00:10]} 3. c4 {[%emt 0:00:24]} Nf6 {[%emt 0:00:25]} 4. Qc2 {[%emt 0:00:11]} g6 {[%emt 0:00:47]} 5. Bf4 {[%emt 0:00:09]} Bf5 {[%emt 0:00:43]} 6. Qb3 {[%emt 0:00:04]} Qb6 {[%emt 0:00:43]} 7. e3 {[%emt 0:00:55]} Nbd7 {[%emt 0:02:13]} 8. Nbd2 {[%emt 0:04:17]} Bg7 {[%emt 0:02:35]} 9. h3 {[%emt 0:02:33]} O-O {[%emt 0:03:22]} 10. c5 {[%emt 0:00:40]} Qxb3 {[%emt 0:02:14]} 11. axb3 {[%emt 0:00:02]} Ne4 {[%emt 0:11:22]} 12. g4 {[%emt 0:01:23]} Nxd2 {[%emt 0:07:27]} 13. Nxd2 {[%emt 0:01:03]} Be6 {[%emt 0:07:14]} 14. b4 {[%emt 0:01:06]} a6 {[%emt 0:00:25]} 15. Nb3 {[%emt 0:00:58]} Rfc8 {[%emt 0:08:22]} 16. Kd2 $16 {[%emt 0:04:53]} f6 {[%emt 0:00:43]} 17. Na5 {[%emt 0:05:46]} Ra7 {[%emt 0:01:00]} 18. Nxb7 {[%emt 0:09:20]} Bf7 {[%emt 0:08:20]} 19. Na5 {[%emt 0:06:01]} e5 {[%emt 0:00:13]} 20. Bg3 {[%emt 0:03:17]} Nb8 {[%emt 0:03:50]} 21. Nb3 {[%emt 0:06:47]} Re8 {[%emt 0:04:18]} 22. Bd3 {[%emt 0:06:56]} Be6 {[%emt 0:01:00]} 23. Ra3 {[%emt 0:07:17]} Bc8 {[%emt 0:01:37]} 24. b5 {[%emt 0:08:12]} cxb5 {[%emt 0:00:20]} 25. Bxb5 {[%emt 0:00:03]} Ree7 {[%emt 0:01:42]} 26. Rha1 {[%emt 0:01:47]} Rac7 {[%emt 0:02:18]} 27. Bd3 {[%emt 0:02:15]} Rc6 {[%emt 0:02:05]} 28. Na5 {[%emt 0:01:55]} Rcc7 {[%emt 0:01:50]} 29. Rb3 {[%emt 0:01:10]} Nd7 {[%emt 0:02:50]} 30. c6 {[%emt 0:06:03]} Nf8 {[%emt 0:00:10]} 31. Rb6 {[%emt 0:00:48]} Ra7 {[%emt 0:01:39]} 32. Nb3 {[%emt 0:01:14]} Ne6 {[%emt 0:01:10]} 33. Bxa6 {[%emt 0:01:46]} Bxa6 {[%emt 0:00:17]} 34. Rbxa6 {[%emt 0:00:51]} Rac7 {[%emt 0:00:46]} 35. Ra8+ {[%emt 0:00:51]} Kf7 {[%emt 0:00:29]} 36. R1a6 {[%emt 0:03:56]} Ng5 {[%emt 0:00:50]} 37. Rd8 {[%emt 0:07:18]} Ne4+ {[%emt 0:02:25]} 38. Kd3 {[%emt 0:00:27]} Nxg3 {[%emt 0:01:03]} 39. fxg3 {[%emt 0:00:07]} exd4 {[%emt 0:01:06]} 40. Nxd4 {[%emt 0:00:40]} Bh6 {[%emt 0:00:29]} 41. Nc2 {[%emt 0:30:43]} Re5 {[%emt 0:33:58]} 42. Rd7+ {[%emt 0:05:38]} Rxd7 {[%emt 0:00:15]} 43. cxd7 {[%emt 0:00:02]} Ke7 {[%emt 0:00:20]} 44. Rd6 {[%emt 0:00:00]} Kd8 {[%emt 0:00:00]} 45. Rxf6 {[%emt 0:00:00]} Kxd7 {[%emt 0:00:00]} 46. Rf7+ {[%emt 0:00:00]} 1-0